[Event "Titled Tuesday Blitz November 29 Late 2022"]
[White "Rustemov, Alexander"]
[Black "Rodriguez Fontecha, Marcos"]
[WhiteFideId "4119002"]
[BlackFideId "2256576"]
[WhiteElo "2832"]
[BlackElo "2263"]
[Result "0-1"]
[Round "05"]
[TimeControl "180+1"]
[Date "2022.11.30"]
[WhiteClock "0:00:20"]
[BlackClock "0:00:04"]

1. d4 {[%clk 0:02:56]}  d5 {[%clk 0:02:59]} 2. c4 {[%clk 0:02:53]}  Nc6 {[%clk 0:02:59]} 3. Nf3 {[%clk 0:02:51]}  e5 {[%clk 0:02:59]} 4. dxe5 {[%clk 0:02:44]}  Bb4+ {[%clk 0:02:59]} 5. Bd2 {[%clk 0:02:40]}  dxc4 {[%clk 0:03:00]} 6. Qa4 {[%clk 0:02:37]}  Qe7 {[%clk 0:02:59]} 7. e3 {[%clk 0:02:31]}  Bd7 {[%clk 0:02:56]} 8. Bxc4 {[%clk 0:02:24]}  Bxd2+ {[%clk 0:02:55]} 9. Nbxd2 {[%clk 0:02:23]}  Nxe5 {[%clk 0:02:56]} 10. Bb5 {[%clk 0:02:21]}  Nd3+ {[%clk 0:02:50]} 11. Ke2 {[%clk 0:02:20]}  Nc5 {[%clk 0:02:37]} 12. Bxd7+ {[%clk 0:02:18]}  Qxd7 {[%clk 0:02:31]} 13. Qxd7+ {[%clk 0:02:15]}  Nxd7 {[%clk 0:02:32]} 14. Rhc1 {[%clk 0:02:11]}  c6 {[%clk 0:02:32]} 15. Nb3 {[%clk 0:02:07]}  Ngf6 {[%clk 0:02:30]} 16. Na5 {[%clk 0:02:06]}  Rb8 {[%clk 0:02:28]} 17. b4 {[%clk 0:02:03]}  Ke7 {[%clk 0:02:28]} 18. Nd4 {[%clk 0:02:02]}  g6 {[%clk 0:02:19]} 19. Ndxc6+ {[%clk 0:01:52]}  bxc6 {[%clk 0:02:20]} 20. Nxc6+ {[%clk 0:01:52]}  Ke6 {[%clk 0:02:17]} 21. Nxb8 {[%clk 0:01:52]}  Rxb8 {[%clk 0:02:18]} 22. a3 {[%clk 0:01:45]}  Ne5 {[%clk 0:02:05]} 23. f4 {[%clk 0:01:43]}  Neg4 {[%clk 0:01:52]} 24. h3 {[%clk 0:01:42]}  Nh6 {[%clk 0:01:53]} 25. g4 {[%clk 0:01:42]}  Nd5 {[%clk 0:01:50]} 26. Rc6+ {[%clk 0:01:40]}  Ke7 {[%clk 0:01:46]} 27. Ra6 {[%clk 0:01:31]}  Rb7 {[%clk 0:01:42]} 28. g5 {[%clk 0:01:25]}  Nf5 {[%clk 0:01:29]} 29. e4 {[%clk 0:01:25]}  Nc7 {[%clk 0:01:24]} 30. Ra4 {[%clk 0:01:10]}  Nd6 {[%clk 0:01:13]} 31. Kf3 {[%clk 0:01:06]}  Ncb5 {[%clk 0:01:01]} 32. Rc1 {[%clk 0:01:03]}  Kd7 {[%clk 0:00:48]} 33. Ke3 {[%clk 0:01:02]}  Rb8 {[%clk 0:00:44]} 34. Rc5 {[%clk 0:00:57]}  Rb7 {[%clk 0:00:36]} 35. h4 {[%clk 0:00:56]}  Nc7 {[%clk 0:00:31]} 36. Raa5 {[%clk 0:00:50]}  Ne6 {[%clk 0:00:27]} 37. f5 {[%clk 0:00:48]}  Nxc5 {[%clk 0:00:24]} 38. Rxc5 {[%clk 0:00:48]}  gxf5 {[%clk 0:00:19]} 39. exf5 {[%clk 0:00:48]}  Rb5 {[%clk 0:00:19]} 40. Rxb5 {[%clk 0:00:47]}  Nxb5 {[%clk 0:00:20]} 41. a4 {[%clk 0:00:47]}  Nc3 {[%clk 0:00:20]} 42. a5 {[%clk 0:00:42]}  Nd5+ {[%clk 0:00:20]} 43. Ke4 {[%clk 0:00:42]}  Nxb4 {[%clk 0:00:17]} 44. h5 {[%clk 0:00:38]}  Ke7 {[%clk 0:00:14]} 45. h6 {[%clk 0:00:38]}  Nc6 {[%clk 0:00:13]} 46. a6 {[%clk 0:00:37]}  Kf8 {[%clk 0:00:07]} 47. Kd5 {[%clk 0:00:33]}  Nb8 {[%clk 0:00:07]} 48. Ke5 {[%clk 0:00:30]}  Nxa6 {[%clk 0:00:06]} 49. g6 {[%clk 0:00:27]}  fxg6 {[%clk 0:00:05]} 50. fxg6 {[%clk 0:00:25]}  Kg8 {[%clk 0:00:05]} 51. g7 {[%clk 0:00:22]}  Nc7 {[%clk 0:00:05]} 52. Kd6 {[%clk 0:00:21]}  Ne8+ {[%clk 0:00:03]} 53. Ke7 {[%clk 0:00:20]}  Nxg7 {[%clk 0:00:03]} 54. hxg7 {[%clk 0:00:20]}  Kxg7 {[%clk 0:00:04]} 0-1


[Site "https://www.chess.com"]

[Event "Titled Tuesday Blitz November 29 Late 2022"]
[White "Sadhwani, Raunak"]
[Black "Mekhitarian, Krikor Sevag"]
[WhiteFideId "35093487"]
[BlackFideId "2107660"]
[WhiteElo "2656"]
[BlackElo "2604"]
[Result "1-0"]
[Round "05"]
[TimeControl "180+1"]
[Date "2022.11.30"]
[WhiteClock "0:01:28"]
[BlackClock "0:00:10"]

1. c4 {[%clk 0:02:59]}  c5 {[%clk 0:02:58]} 2. Nf3 {[%clk 0:02:59]}  Nc6 {[%clk 0:02:58]} 3. Nc3 {[%clk 0:03:00]}  Nf6 {[%clk 0:02:53]} 4. b3 {[%clk 0:03:01]}  b6 {[%clk 0:02:41]} 5. Bb2 {[%clk 0:03:01]}  Bb7 {[%clk 0:02:42]} 6. g3 {[%clk 0:03:01]}  g6 {[%clk 0:02:43]} 7. Nd5 {[%clk 0:03:00]}  Bg7 {[%clk 0:02:41]} 8. Bxf6 {[%clk 0:02:55]}  exf6 {[%clk 0:02:40]} 9. Bg2 {[%clk 0:02:55]}  f5 {[%clk 0:02:39]} 10. Rc1 {[%clk 0:02:54]}  O-O {[%clk 0:02:39]} 11. O-O {[%clk 0:02:52]}  Re8 {[%clk 0:02:39]} 12. e3 {[%clk 0:02:51]}  Ne7 {[%clk 0:02:34]} 13. Nxe7+ {[%clk 0:02:52]}  Rxe7 {[%clk 0:02:33]} 14. d4 {[%clk 0:02:49]}  d6 {[%clk 0:02:24]} 15. Ne1 {[%clk 0:02:34]}  Bxg2 {[%clk 0:02:17]} 16. Nxg2 {[%clk 0:02:35]}  cxd4 {[%clk 0:02:17]} 17. exd4 {[%clk 0:02:36]}  d5 {[%clk 0:02:17]} 18. c5 {[%clk 0:02:36]}  bxc5 {[%clk 0:02:16]} 19. dxc5 {[%clk 0:02:37]}  d4 {[%clk 0:02:16]} 20. Qd3 {[%clk 0:02:37]}  a5 {[%clk 0:02:13]} 21. Rfe1 {[%clk 0:02:31]}  Rxe1+ {[%clk 0:02:09]} 22. Nxe1 {[%clk 0:02:32]}  Qd5 {[%clk 0:02:05]} 23. Qf3 {[%clk 0:02:31]}  Qe4 {[%clk 0:01:56]} 24. Kg2 {[%clk 0:02:31]}  Rc8 {[%clk 0:01:55]} 25. Nd3 {[%clk 0:02:29]}  g5 {[%clk 0:01:37]} 26. Re1 {[%clk 0:02:22]}  Qxf3+ {[%clk 0:01:28]} 27. Kxf3 {[%clk 0:02:23]}  h5 {[%clk 0:01:19]} 28. h3 {[%clk 0:02:22]}  g4+ {[%clk 0:01:05]} 29. Kg2 {[%clk 0:02:22]}  Bf6 {[%clk 0:00:57]} 30. h4 {[%clk 0:02:21]}  Kf8 {[%clk 0:00:56]} 31. Kf1 {[%clk 0:02:20]}  Rb8 {[%clk 0:00:45]} 32. Rc1 {[%clk 0:02:20]}  Ke7 {[%clk 0:00:44]} 33. Nf4 {[%clk 0:02:20]}  Kd7 {[%clk 0:00:42]} 34. Ke2 {[%clk 0:02:14]}  Kc6 {[%clk 0:00:39]} 35. Kd3 {[%clk 0:02:14]}  Be5 {[%clk 0:00:38]} 36. Ne2 {[%clk 0:02:10]}  Rb4 {[%clk 0:00:28]} 37. Rc4 {[%clk 0:02:09]}  Rxc4 {[%clk 0:00:27]} 38. Kxc4 {[%clk 0:02:10]}  d3 {[%clk 0:00:27]} 39. Kxd3 {[%clk 0:02:10]}  Kxc5 {[%clk 0:00:27]} 40. a3 {[%clk 0:01:53]}  f6 {[%clk 0:00:17]} 41. Nf4 {[%clk 0:01:49]}  Bxf4 {[%clk 0:00:10]} 42. gxf4 {[%clk 0:01:49]}  Kd5 {[%clk 0:00:10]} 43. b4 {[%clk 0:01:35]}  axb4 {[%clk 0:00:07]} 44. axb4 {[%clk 0:01:35]}  Kd6 {[%clk 0:00:05]} 45. Kc4 {[%clk 0:01:30]}  Kc6 {[%clk 0:00:05]} 46. b5+ {[%clk 0:01:31]}  Kb6 {[%clk 0:00:05]} 47. Kb4 {[%clk 0:01:31]}  Kc7 {[%clk 0:00:05]} 48. Kc5 {[%clk 0:01:32]}  Kb7 {[%clk 0:00:06]} 49. b6 {[%clk 0:01:30]}  Kb8 {[%clk 0:00:05]} 50. Kd6 {[%clk 0:01:28]}  Kb7 {[%clk 0:00:06]} 51. Ke6 {[%clk 0:01:29]}  Kxb6 {[%clk 0:00:07]} 52. Kxf6 {[%clk 0:01:27]}  Kc5 {[%clk 0:00:07]} 53. Kxf5 {[%clk 0:01:27]}  Kd4 {[%clk 0:00:08]} 54. Kg5 {[%clk 0:01:28]}  Ke4 {[%clk 0:00:09]} 55. f5 {[%clk 0:01:28]}  Kf3 {[%clk 0:00:09]} 56. Kxh5 {[%clk 0:01:28]}  Kxf2 {[%clk 0:00:10]} 57. Kxg4 {[%clk 0:01:28]} 1-0


[Site "https://www.chess.com"]

[Event "Titled Tuesday Blitz November 29 Late 2022"]
[White "Salem, A.R. Saleh"]
[Black "Zhigalko, Sergei"]
[WhiteFideId "9301348"]
[BlackFideId "13502956"]
[WhiteElo "2628"]
[BlackElo "2662"]
[Result "1-0"]
[Round "05"]
[TimeControl "180+1"]
[Date "2022.11.30"]
[WhiteClock "0:00:14"]
[BlackClock "0:00:02"]

1. d4 {[%clk 0:02:57]}  Nf6 {[%clk 0:03:00]} 2. c4 {[%clk 0:02:58]}  e6 {[%clk 0:03:00]} 3. Nc3 {[%clk 0:02:59]}  Bb4 {[%clk 0:03:00]} 4. a3 {[%clk 0:02:59]}  Bxc3+ {[%clk 0:03:00]} 5. bxc3 {[%clk 0:03:00]}  O-O {[%clk 0:02:57]} 6. f3 {[%clk 0:03:00]}  d5 {[%clk 0:02:57]} 7. cxd5 {[%clk 0:02:59]}  exd5 {[%clk 0:02:52]} 8. e3 {[%clk 0:02:59]}  Bf5 {[%clk 0:02:44]} 9. Ne2 {[%clk 0:02:56]}  Re8 {[%clk 0:02:43]} 10. Kf2 {[%clk 0:02:55]}  Nbd7 {[%clk 0:02:35]} 11. h3 {[%clk 0:02:54]}  h6 {[%clk 0:02:21]} 12. g4 {[%clk 0:02:54]}  Bh7 {[%clk 0:02:22]} 13. h4 {[%clk 0:02:51]}  Nf8 {[%clk 0:02:11]} 14. g5 {[%clk 0:02:41]}  hxg5 {[%clk 0:02:06]} 15. hxg5 {[%clk 0:02:42]}  N6d7 {[%clk 0:02:06]} 16. f4 {[%clk 0:02:36]}  f6 {[%clk 0:01:44]} 17. g6 {[%clk 0:02:36]}  Bxg6 {[%clk 0:01:42]} 18. Ng3 {[%clk 0:02:37]}  f5 {[%clk 0:01:32]} 19. Bd3 {[%clk 0:02:37]}  Nf6 {[%clk 0:01:32]} 20. Kg1 {[%clk 0:02:24]}  Qd7 {[%clk 0:01:26]} 21. Ra2 {[%clk 0:02:20]}  Re7 {[%clk 0:01:22]} 22. Rah2 {[%clk 0:02:12]}  Rae8 {[%clk 0:01:21]} 23. Qf3 {[%clk 0:01:44]}  Ng4 {[%clk 0:01:12]} 24. Rh8+ {[%clk 0:01:35]}  Kf7 {[%clk 0:01:12]} 25. Nf1 {[%clk 0:00:43]}  Qe6 {[%clk 0:00:57]} 26. a4 {[%clk 0:00:41]}  Qd6 {[%clk 0:00:43]} 27. c4 {[%clk 0:00:34]}  c6 {[%clk 0:00:38]} 28. R1h4 {[%clk 0:00:27]}  Nd7 {[%clk 0:00:27]} 29. cxd5 {[%clk 0:00:22]}  cxd5 {[%clk 0:00:14]} 30. Ba3 {[%clk 0:00:16]}  Qxa3 {[%clk 0:00:14]} 31. Qxd5+ {[%clk 0:00:16]}  Kf6 {[%clk 0:00:15]} 32. Rxg4 {[%clk 0:00:17]}  Qxd3 {[%clk 0:00:05]} 33. Rxg6+ {[%clk 0:00:12]}  Kxg6 {[%clk 0:00:04]} 34. Rxe8 {[%clk 0:00:12]}  Nf6 {[%clk 0:00:01]} 35. Qg2+ {[%clk 0:00:12]}  Kf7 {[%clk 0:00:02]} 36. Rxe7+ {[%clk 0:00:12]}  Kxe7 {[%clk 0:00:03]} 37. Qxb7+ {[%clk 0:00:10]}  Kf8 {[%clk 0:00:02]} 38. Qa8+ {[%clk 0:00:10]}  Kf7 {[%clk 0:00:03]} 39. Qxa7+ {[%clk 0:00:11]}  Kg8 {[%clk 0:00:04]} 40. Qc5 {[%clk 0:00:11]}  Ng4 {[%clk 0:00:03]} 41. Qd5+ {[%clk 0:00:09]}  Kh8 {[%clk 0:00:03]} 42. Qh1+ {[%clk 0:00:09]}  Kg8 {[%clk 0:00:03]} 43. a5 {[%clk 0:00:09]}  Qa3 {[%clk 0:00:03]} 44. Qa8+ {[%clk 0:00:09]}  Kh7 {[%clk 0:00:03]} 45. Qh1+ {[%clk 0:00:09]}  Kg8 {[%clk 0:00:03]} 46. Qd5+ {[%clk 0:00:10]}  Kh8 {[%clk 0:00:03]} 47. Qxf5 {[%clk 0:00:10]}  Nf6 {[%clk 0:00:02]} 48. Qc8+ {[%clk 0:00:10]}  Kh7 {[%clk 0:00:02]} 49. Qc5 {[%clk 0:00:10]}  Qa2 {[%clk 0:00:02]} 50. Qf5+ {[%clk 0:00:10]}  Kh8 {[%clk 0:00:02]} 51. Qc8+ {[%clk 0:00:10]}  Kh7 {[%clk 0:00:02]} 52. a6 {[%clk 0:00:11]}  Kh6 {[%clk 0:00:01]} 53. Qh3+ {[%clk 0:00:12]}  Kg6 {[%clk 0:00:01]} 54. Qg2+ {[%clk 0:00:12]}  Qxg2+ {[%clk 0:00:01]} 55. Kxg2 {[%clk 0:00:13]}  Nd5 {[%clk 0:00:02]} 56. a7 {[%clk 0:00:13]}  Nc7 {[%clk 0:00:02]} 57. e4 {[%clk 0:00:14]} 1-0


[Site "https://www.chess.com"]

[Event "Titled Tuesday Blitz November 29 Late 2022"]
[White "Salman, Pavel"]
[Black "Wieczorek, Zbigniew"]
[WhiteFideId "24153753"]
[BlackFideId "1102001"]
[WhiteElo "2187"]
[BlackElo "2319"]
[Result "1-0"]
[Round "05"]
[TimeControl "180+1"]
[Date "2022.11.30"]
[WhiteClock "0:00:18"]
[BlackClock "0:00:01"]

1. Nf3 {[%clk 0:03:00]}  g6 {[%clk 0:02:58]} 2. g3 {[%clk 0:03:00]}  Bg7 {[%clk 0:02:58]} 3. Bg2 {[%clk 0:03:01]}  Nf6 {[%clk 0:02:58]} 4. O-O {[%clk 0:03:01]}  d5 {[%clk 0:02:55]} 5. d3 {[%clk 0:03:02]}  c6 {[%clk 0:02:55]} 6. Nbd2 {[%clk 0:03:02]}  O-O {[%clk 0:02:56]} 7. e4 {[%clk 0:03:03]}  Bg4 {[%clk 0:02:56]} 8. h3 {[%clk 0:03:02]}  Bxf3 {[%clk 0:02:56]} 9. Qxf3 {[%clk 0:03:02]}  Nbd7 {[%clk 0:02:55]} 10. Qe2 {[%clk 0:03:01]}  e5 {[%clk 0:02:54]} 11. Kh1 {[%clk 0:02:56]}  Re8 {[%clk 0:02:53]} 12. c3 {[%clk 0:02:55]}  dxe4 {[%clk 0:02:45]} 13. dxe4 {[%clk 0:02:54]}  Nc5 {[%clk 0:02:44]} 14. Nc4 {[%clk 0:02:51]}  Qd3 {[%clk 0:02:18]} 15. Qxd3 {[%clk 0:02:03]}  Nxd3 {[%clk 0:02:17]} 16. Nd6 {[%clk 0:02:00]}  Re6 {[%clk 0:01:59]} 17. Nxb7 {[%clk 0:01:54]}  Rb8 {[%clk 0:01:58]} 18. Na5 {[%clk 0:01:51]}  Nxc1 {[%clk 0:01:56]} 19. Raxc1 {[%clk 0:01:43]}  Rxb2 {[%clk 0:01:56]} 20. a3 {[%clk 0:01:39]}  Ra2 {[%clk 0:01:38]} 21. Nc4 {[%clk 0:01:38]}  Bh6 {[%clk 0:01:28]} 22. Rb1 {[%clk 0:01:38]}  Rc2 {[%clk 0:01:24]} 23. Rb3 {[%clk 0:01:32]}  Nd7 {[%clk 0:01:15]} 24. Rb8+ {[%clk 0:01:28]}  Kg7 {[%clk 0:01:15]} 25. Rb7 {[%clk 0:01:28]}  Nc5 {[%clk 0:01:11]} 26. Rxa7 {[%clk 0:01:27]}  Rxc3 {[%clk 0:01:11]} 27. Nb6 {[%clk 0:01:21]}  Nd3 {[%clk 0:01:02]} 28. a4 {[%clk 0:01:15]}  Rc2 {[%clk 0:00:58]} 29. a5 {[%clk 0:01:04]}  Nxf2+ {[%clk 0:00:49]} 30. Kh2 {[%clk 0:01:04]}  Be3 {[%clk 0:00:50]} 31. Rc7 {[%clk 0:00:59]}  Rf6 {[%clk 0:00:47]} 32. Re1 {[%clk 0:00:47]}  Bd4 {[%clk 0:00:16]} 33. Nd7 {[%clk 0:00:46]}  Rd6 {[%clk 0:00:06]} 34. a6 {[%clk 0:00:44]}  Ra2 {[%clk 0:00:04]} 35. Nb8 {[%clk 0:00:41]}  Rf6 {[%clk 0:00:03]} 36. Rxc6 {[%clk 0:00:40]}  Rxc6 {[%clk 0:00:02]} 37. Nxc6 {[%clk 0:00:41]}  Rxa6 {[%clk 0:00:02]} 38. Nxd4 {[%clk 0:00:41]}  exd4 {[%clk 0:00:03]} 39. Re2 {[%clk 0:00:42]}  Nd1 {[%clk 0:00:02]} 40. Rd2 {[%clk 0:00:42]}  Ne3 {[%clk 0:00:02]} 41. Bf3 {[%clk 0:00:40]}  Rd6 {[%clk 0:00:02]} 42. Kg1 {[%clk 0:00:40]}  Nc4 {[%clk 0:00:02]} 43. Rd1 {[%clk 0:00:35]}  Ne5 {[%clk 0:00:03]} 44. Kf2 {[%clk 0:00:35]}  f6 {[%clk 0:00:02]} 45. Bg2 {[%clk 0:00:32]}  g5 {[%clk 0:00:02]} 46. Bf1 {[%clk 0:00:31]}  Kg6 {[%clk 0:00:03]} 47. Ra1 {[%clk 0:00:28]}  Rb6 {[%clk 0:00:02]} 48. Ra2 {[%clk 0:00:27]}  Rb3 {[%clk 0:00:02]} 49. Be2 {[%clk 0:00:26]}  Re3 {[%clk 0:00:02]} 50. Rd2 {[%clk 0:00:19]}  Rxe4 {[%clk 0:00:02]} 51. Bd1 {[%clk 0:00:19]}  f5 {[%clk 0:00:01]} 52. Bc2 {[%clk 0:00:18]} 1-0


[Site "https://www.chess.com"]

[Event "Titled Tuesday Blitz November 29 Late 2022"]
[White "Sanchez, Robert"]
[Black "Fareh, Youness"]
[WhiteFideId "2034360"]
[BlackFideId "9000526"]
[WhiteElo "2321"]
[BlackElo "1845"]
[Result "1-0"]
[Round "05"]
[TimeControl "180+1"]
[Date "2022.11.30"]
[WhiteClock "0:00:56"]
[BlackClock "0:00:06"]

1. e4 {[%clk 0:02:55]}  c5 {[%clk 0:02:58]} 2. Nf3 {[%clk 0:02:55]}  e6 {[%clk 0:02:57]} 3. d4 {[%clk 0:02:55]}  cxd4 {[%clk 0:02:57]} 4. Nxd4 {[%clk 0:02:56]}  Nf6 {[%clk 0:02:57]} 5. Nc3 {[%clk 0:02:56]}  Nc6 {[%clk 0:02:56]} 6. Nxc6 {[%clk 0:02:53]}  bxc6 {[%clk 0:02:56]} 7. Bd3 {[%clk 0:02:53]}  Be7 {[%clk 0:02:47]} 8. O-O {[%clk 0:02:53]}  O-O {[%clk 0:02:44]} 9. e5 {[%clk 0:02:53]}  Nd5 {[%clk 0:02:40]} 10. Nxd5 {[%clk 0:02:52]}  cxd5 {[%clk 0:02:40]} 11. f4 {[%clk 0:02:52]}  d6 {[%clk 0:02:39]} 12. Rf3 {[%clk 0:02:51]}  Ba6 {[%clk 0:02:26]} 13. Rh3 {[%clk 0:02:31]}  Bxd3 {[%clk 0:02:22]} 14. Qxd3 {[%clk 0:02:31]}  g6 {[%clk 0:02:13]} 15. Be3 {[%clk 0:02:26]}  f6 {[%clk 0:01:45]} 16. exd6 {[%clk 0:02:13]}  Bxd6 {[%clk 0:01:41]} 17. Rf1 {[%clk 0:02:09]}  Qc7 {[%clk 0:01:30]} 18. g4 {[%clk 0:01:52]}  Bc5 {[%clk 0:01:22]} 19. f5 {[%clk 0:01:48]}  Bxe3+ {[%clk 0:01:22]} 20. Rxe3 {[%clk 0:01:42]}  exf5 {[%clk 0:00:38]} 21. Qxd5+ {[%clk 0:01:38]}  Qf7 {[%clk 0:00:38]} 22. Qxf7+ {[%clk 0:01:38]}  Rxf7 {[%clk 0:00:39]} 23. gxf5 {[%clk 0:01:39]}  Rb8 {[%clk 0:00:35]} 24. b3 {[%clk 0:01:35]}  Rb4 {[%clk 0:00:32]} 25. c4 {[%clk 0:01:21]}  a5 {[%clk 0:00:30]} 26. Re8+ {[%clk 0:01:08]}  Kg7 {[%clk 0:00:30]} 27. Ra8 {[%clk 0:01:06]}  a4 {[%clk 0:00:27]} 28. Rxa4 {[%clk 0:01:04]}  Rxa4 {[%clk 0:00:28]} 29. bxa4 {[%clk 0:01:05]}  Ra7 {[%clk 0:00:27]} 30. Rc1 {[%clk 0:01:04]}  Rxa4 {[%clk 0:00:27]} 31. Rc2 {[%clk 0:01:00]}  gxf5 {[%clk 0:00:14]} 32. Kf2 {[%clk 0:00:58]}  Ra3 {[%clk 0:00:10]} 33. c5 {[%clk 0:00:57]}  Kf7 {[%clk 0:00:09]} 34. c6 {[%clk 0:00:56]}  Ra8 {[%clk 0:00:08]} 35. c7 {[%clk 0:00:56]}  Rc8 {[%clk 0:00:09]} 36. Kf3 {[%clk 0:00:57]}  Ke6 {[%clk 0:00:09]} 37. Kf4 {[%clk 0:00:57]}  h6 {[%clk 0:00:09]} 38. a4 {[%clk 0:00:56]}  Kd7 {[%clk 0:00:08]} 39. Kxf5 {[%clk 0:00:55]}  Ra8 {[%clk 0:00:05]} 40. c8=Q+ {[%clk 0:00:55]}  Rxc8 {[%clk 0:00:05]} 41. Rxc8 {[%clk 0:00:55]}  Kxc8 {[%clk 0:00:06]} 42. Kxf6 {[%clk 0:00:56]} 1-0


[Site "https://www.chess.com"]

[Event "Titled Tuesday Blitz November 29 Late 2022"]
[White "Seletsky, Grigory"]
[Black "Cruz Gomez, Miguel Angel"]
[WhiteFideId "14112191"]
[BlackFideId "5137160"]
[WhiteElo "2492"]
[BlackElo "2126"]
[Result "1-0"]
[Round "05"]
[TimeControl "180+1"]
[Date "2022.11.30"]
[WhiteClock "0:00:06"]
[BlackClock "0:00:26"]

1. e4 {[%clk 0:02:58]}  c5 {[%clk 0:02:58]} 2. Nf3 {[%clk 0:02:58]}  e6 {[%clk 0:02:58]} 3. d4 {[%clk 0:02:57]}  cxd4 {[%clk 0:02:59]} 4. Nxd4 {[%clk 0:02:57]}  Nc6 {[%clk 0:03:00]} 5. Nc3 {[%clk 0:02:58]}  Qc7 {[%clk 0:03:00]} 6. Ndb5 {[%clk 0:02:56]}  Qb8 {[%clk 0:02:59]} 7. a4 {[%clk 0:02:55]}  a6 {[%clk 0:02:59]} 8. Na3 {[%clk 0:02:51]}  Nf6 {[%clk 0:02:54]} 9. Be3 {[%clk 0:02:51]}  Qc7 {[%clk 0:02:52]} 10. Nc4 {[%clk 0:02:49]}  d6 {[%clk 0:02:39]} 11. Nb6 {[%clk 0:02:32]}  Rb8 {[%clk 0:02:38]} 12. a5 {[%clk 0:02:31]}  Be7 {[%clk 0:02:37]} 13. Be2 {[%clk 0:02:29]}  O-O {[%clk 0:02:37]} 14. O-O {[%clk 0:02:29]}  Bd7 {[%clk 0:02:36]} 15. f4 {[%clk 0:02:27]}  Rfd8 {[%clk 0:02:34]} 16. g4 {[%clk 0:02:23]}  Be8 {[%clk 0:02:33]} 17. g5 {[%clk 0:02:24]}  Nd7 {[%clk 0:02:33]} 18. h4 {[%clk 0:02:20]}  Nc5 {[%clk 0:02:25]} 19. Bf3 {[%clk 0:02:14]}  Bf8 {[%clk 0:02:11]} 20. Nc4 {[%clk 0:02:03]}  Nb4 {[%clk 0:01:38]} 21. Qe2 {[%clk 0:01:49]}  d5 {[%clk 0:01:23]} 22. exd5 {[%clk 0:01:48]}  exd5 {[%clk 0:01:24]} 23. Bg2 {[%clk 0:01:32]}  d4 {[%clk 0:01:15]} 24. Bf2 {[%clk 0:01:25]}  dxc3 {[%clk 0:01:04]} 25. bxc3 {[%clk 0:01:25]}  Nd5 {[%clk 0:01:04]} 26. Qf3 {[%clk 0:01:13]}  Qxf4 {[%clk 0:01:01]} 27. Bd4 {[%clk 0:01:09]}  Qxf3 {[%clk 0:00:59]} 28. Rxf3 {[%clk 0:01:07]}  Nc7 {[%clk 0:00:54]} 29. Be5 {[%clk 0:00:53]}  Rbc8 {[%clk 0:00:46]} 30. Nb6 {[%clk 0:00:51]}  N7e6 {[%clk 0:00:47]} 31. Nxc8 {[%clk 0:00:46]}  Rxc8 {[%clk 0:00:47]} 32. Rb1 {[%clk 0:00:42]}  Rd8 {[%clk 0:00:47]} 33. Rf2 {[%clk 0:00:38]}  Bd6 {[%clk 0:00:36]} 34. Bd4 {[%clk 0:00:30]}  Nxd4 {[%clk 0:00:34]} 35. cxd4 {[%clk 0:00:29]}  Ne6 {[%clk 0:00:34]} 36. c3 {[%clk 0:00:28]}  Bc6 {[%clk 0:00:33]} 37. Bxc6 {[%clk 0:00:25]}  bxc6 {[%clk 0:00:34]} 38. Kg2 {[%clk 0:00:24]}  Nc7 {[%clk 0:00:32]} 39. Rb7 {[%clk 0:00:22]}  Kf8 {[%clk 0:00:28]} 40. Kh3 {[%clk 0:00:20]}  Ke8 {[%clk 0:00:28]} 41. Kg4 {[%clk 0:00:20]}  Rd7 {[%clk 0:00:28]} 42. Re2+ {[%clk 0:00:19]}  Ne6 {[%clk 0:00:28]} 43. Rb6 {[%clk 0:00:18]}  Kd8 {[%clk 0:00:19]} 44. Rxc6 {[%clk 0:00:17]}  Bc7 {[%clk 0:00:19]} 45. Rxa6 {[%clk 0:00:16]}  Rd5 {[%clk 0:00:20]} 46. Ra8+ {[%clk 0:00:16]}  Kd7 {[%clk 0:00:21]} 47. a6 {[%clk 0:00:16]}  Ra5 {[%clk 0:00:21]} 48. Rb2 {[%clk 0:00:15]}  Ra3 {[%clk 0:00:21]} 49. Rb7 {[%clk 0:00:15]}  Kc6 {[%clk 0:00:20]} 50. Rc8 {[%clk 0:00:14]}  Rxa6 {[%clk 0:00:20]} 51. Rb4 {[%clk 0:00:13]}  Kd7 {[%clk 0:00:20]} 52. Rg8 {[%clk 0:00:12]}  Rd6 {[%clk 0:00:20]} 53. Rh8 {[%clk 0:00:12]}  h6 {[%clk 0:00:21]} 54. Rh7 {[%clk 0:00:12]}  hxg5 {[%clk 0:00:21]} 55. hxg5 {[%clk 0:00:12]}  Ke7 {[%clk 0:00:21]} 56. Rc4 {[%clk 0:00:12]}  Bd8 {[%clk 0:00:22]} 57. Rh8 {[%clk 0:00:12]}  Rd7 {[%clk 0:00:23]} 58. g6 {[%clk 0:00:11]}  Bc7 {[%clk 0:00:23]} 59. gxf7 {[%clk 0:00:10]}  Kxf7 {[%clk 0:00:24]} 60. Rc6 {[%clk 0:00:10]}  Nf8 {[%clk 0:00:24]} 61. Rh5 {[%clk 0:00:09]}  Bd6 {[%clk 0:00:24]} 62. Rf5+ {[%clk 0:00:09]}  Ke8 {[%clk 0:00:25]} 63. Rd5 {[%clk 0:00:09]}  Be7 {[%clk 0:00:26]} 64. Rxd7 {[%clk 0:00:09]}  Kxd7 {[%clk 0:00:27]} 65. Ra6 {[%clk 0:00:09]}  Ne6 {[%clk 0:00:27]} 66. Kf5 {[%clk 0:00:08]}  Bd6 {[%clk 0:00:28]} 67. Kg6 {[%clk 0:00:08]}  Bf8 {[%clk 0:00:27]} 68. Kf7 {[%clk 0:00:08]}  Bd6 {[%clk 0:00:26]} 69. d5 {[%clk 0:00:06]}  Bc7 {[%clk 0:00:27]} 70. dxe6+ {[%clk 0:00:05]}  Kd8 {[%clk 0:00:26]} 71. e7+ {[%clk 0:00:06]} 1-0


[Site "https://www.chess.com"]

[Event "Titled Tuesday Blitz November 29 Late 2022"]
[White "Shankland, Sam"]
[Black "Pham, Khoi"]
[WhiteFideId "2004887"]
[BlackFideId "1054988"]
[WhiteElo "2612"]
[BlackElo "2499"]
[Result "1-0"]
[Round "05"]
[TimeControl "180+1"]
[Date "2022.11.30"]
[WhiteClock "0:02:28"]
[BlackClock "0:02:15"]

1. d4 {[%clk 0:02:55]}  d5 {[%clk 0:03:00]} 2. c4 {[%clk 0:02:54]}  c6 {[%clk 0:03:00]} 3. Nc3 {[%clk 0:02:54]}  Nf6 {[%clk 0:03:01]} 4. e3 {[%clk 0:02:54]}  e6 {[%clk 0:03:01]} 5. Nf3 {[%clk 0:02:54]}  Nbd7 {[%clk 0:03:00]} 6. Be2 {[%clk 0:02:54]}  b6 {[%clk 0:02:57]} 7. O-O {[%clk 0:02:54]}  Bb7 {[%clk 0:02:57]} 8. b3 {[%clk 0:02:54]}  Bd6 {[%clk 0:02:56]} 9. Bb2 {[%clk 0:02:54]}  O-O {[%clk 0:02:57]} 10. Bd3 {[%clk 0:02:54]}  Rc8 {[%clk 0:02:56]} 11. Rc1 {[%clk 0:02:53]}  Re8 {[%clk 0:02:55]} 12. Re1 {[%clk 0:02:53]}  c5 {[%clk 0:02:54]} 13. cxd5 {[%clk 0:02:52]}  Nxd5 {[%clk 0:02:53]} 14. Nxd5 {[%clk 0:02:51]}  Bxd5 {[%clk 0:02:54]} 15. Bb5 {[%clk 0:02:44]}  Qe7 {[%clk 0:02:43]} 16. e4 {[%clk 0:02:39]}  Ba8 {[%clk 0:02:42]} 17. Bxd7 {[%clk 0:02:27]}  Qxd7 {[%clk 0:02:41]} 18. dxc5 {[%clk 0:02:28]}  Rxc5 {[%clk 0:02:16]} 19. Rxc5 {[%clk 0:02:27]}  bxc5 {[%clk 0:02:17]} 20. e5 {[%clk 0:02:27]}  Bxf3 {[%clk 0:02:15]} 21. gxf3 {[%clk 0:02:28]} 1-0


[Site "https://www.chess.com"]